bitfinex/quotes_SOLUSD_20240605
["timestamp","ask_amount","ask_price","bid_price","bid_amount"]
[1717598145980,2.1443,172.55,172.51,2.1447]
[1717598146177,2.1443,172.55,172.52,2.1446]
[1717598146495,0.9327606,172.57,172.52,2.1446]
[1717598146496,2.1442,172.56,172.52,2.1446]
[1717598146677,0.9327606,172.55,172.52,2.1446]
[1717598147295,3.0770606,172.55,172.52,2.1446]
[1717598147491,0.9327606,172.54,172.52,2.1446]
[1717598147892,2.1444,172.54,172.51,2.1447]
[1717598148283,2.1443,172.55,172.51,2.1447]
[1717598148984,2.1446,172.52,172.49,2.145]
[1717598149185,2.1443,172.55,172.51,2.1447]
[1717598149602,2.1443,172.55,172.52,2.1446]
[1717598153505,12.8635,172.59,172.53,2.1445]
[1717598153692,0.17,172.58,172.53,2.1445]
[1717598153892,2.1441,172.56,172.53,2.1445]
[1717598154293,0.9327606,172.55,172.53,2.1445]
[1717598154905,5.3906606,172.58,172.52,2.1445]
[1717598155212,2.1443,172.55,172.52,2.1445]
[1717598155589,2.1442,172.56,172.52,2.1445]
[1717598156678,2.1442,172.56,172.49,8.68146334]
[1717598156679,2.1444,172.54,172.49,8.68146334]
[1717598157115,2.1445,172.53,172.5,2.1448]
[1717598157683,2.1444,172.54,172.5,2.1448]
[1717598157895,2.1444,172.54,172.48,12.97156334]
[1717598158098,2.1444,172.54,172.5,2.1448]
[1717598158296,2.1444,172.54,172.51,2.1447]
[1717598158511,3.0771606,172.54,172.51,2.1447]
[1717598159310,2.1444,172.54,172.51,2.1447]
[1717598159612,2.4843,172.55,172.51,2.1447]
[1717598159799,0.17,172.54,172.51,2.1447]
[1717598160001,0.17,172.54,172.52,2.1446]
[1717598160387,3.2471606,172.54,172.48,8.68146334]
[1717598160587,2.3145,172.53,172.48,8.68146334]
[1717598161005,0.9327606,172.52,172.48,8.68146334]
[1717598161319,2.3145,172.53,172.47,4.2904]
[1717598161320,2.3146,172.53,172.49,2.1449]
[1717598161492,0.17,172.52,172.49,2.1449]
[1717598161682,0.17,172.52,172.5,2.1449]
[1717598161885,1.1027606,172.52,172.5,2.1449]
[1717598162081,0.17,172.53,172.48,4.2902]
[1717598162082,0.17,172.53,172.51,2.1448]
[1717598162293,2.1445,172.53,172.5,2.1448]
[1717598162508,3.4173606,172.52,172.49,2.1449]
[1717598162687,3.4173606,172.52,172.47,8.68146334]
[1717598162896,0.9327606,172.51,172.49,2.145]
[1717598164712,0.9327606,172.51,172.47,2.1452]
[1717598164915,2.1448,172.51,172.47,2.1452]
[1717598165713,2.1448,172.51,172.46,8.68146334]
[1717598166219,2.1446,172.53,172.47,4.2906]
[1717598167020,2.1446,172.53,172.47,12.97206334]
[1717598167201,2.1446,172.53,172.49,2.1449]
[1717598167506,2.1446,172.52,172.49,2.1449]
[1717598167906,4.2887,172.55,172.5,2.1449]
[1717598168119,2.4844,172.54,172.51,2.1448]
[1717598168312,2.4844,172.54,172.5,2.1448]
[1717598169021,2.1445,172.53,172.5,2.1448]
[1717598169414,2.1445,172.53,172.49,2.1449]
[1717598170124,2.1445,172.53,172.5,2.1448]
[1717598171524,2.1446,172.53,172.49,2.145]
[1717598173101,2.1446,172.53,172.47,12.9764127]
[1717598174000,2.1446,172.53,172.48,8.6859127]
[1717598174201,0.34,172.54,172.48,8.6859127]
[1717598174202,2.1444,172.54,172.48,12.9761127]
[1717598174404,2.1441,172.57,172.48,15.1119127]
[1717598174601,2.1439,172.58,172.54,2.1443]
[1717598174802,3.0767606,172.57,172.54,10.8303127]
[1717598175014,3.0767606,172.57,172.55,8.6859127]
[1717598175401,2.144,172.57,172.55,8.6859127]
[1717598176335,3.0767606,172.57,172.54,8.6859127]
[1717598176727,2.1441,172.56,172.54,8.6859127]
[1717598177111,2.1441,172.57,172.54,8.6859127]
[1717598177425,2.1443,172.55,172.54,8.6859127]
[1717598177632,2.1444,172.54,172.53,8.6859127]
[1717598177810,6.7732,172.54,172.53,8.6859127]
[1717598178122,2.1445,172.53,172.51,8.6859127]
[1717598178929,2.1445,172.53,172.44,6.1565]
[1717598178930,2.1445,172.53,172.49,2.145]
[1717598179226,2.3146,172.52,172.49,2.145]
[1717598179424,2.4846,172.52,172.48,2.1451]
[1717598179603,2.4846,172.52,172.49,2.145]
[1717598179604,0.34,172.52,172.49,2.145]
[1717598180800,2.4846,172.52,172.49,2.145]
[1717598181203,0.34,172.52,172.49,2.145]
[1717598182240,2.4846,172.52,172.48,2.1451]
[1717598182536,3.0775606,172.51,172.48,2.1451]
[1717598182910,2.1448,172.51,172.48,2.1451]
[1717598183437,3.0775606,172.51,172.47,2.1452]
[1717598183632,2.1449,172.5,172.46,2.1453]
[1717598183839,0.9327606,172.49,172.46,2.1453]
[1717598184427,0.9327606,172.49,172.47,2.1452]
[1717598185621,0.9327606,172.49,172.48,2.1451]
[1717598185813,2.4847,172.52,172.46,4.2907]
[1717598186015,0.34,172.52,172.47,4.2905]
[1717598186246,22.1444,172.54,172.5,2.1448]
[1717598186417,2.1444,172.54,172.51,2.1448]
[1717598186757,16.7342,172.58,172.5,4.2897]
[1717598186912,20.9327606,172.57,172.52,2.1446]
[1717598187113,2.1443,172.55,172.51,2.1447]
[1717598187414,2.1443,172.55,172.52,2.1446]
[1717598188646,2.1443,172.55,172.51,2.1447]
[1717598189444,3.0771606,172.54,172.5,2.1448]
[1717598189669,2.1447,172.52,172.48,10.8310127]
[1717598189868,2.1448,172.51,172.48,8.6859127]
[1717598190157,2.1448,172.51,172.47,2.1452]
[1717598190450,2.1449,172.5,172.47,2.1452]
[1717598190852,2.1448,172.51,172.47,2.1452]
[1717598192146,2.1448,172.51,172.48,2.1451]
[1717598192838,2.1448,172.51,172.47,2.1452]
[1717598194262,2.4849,172.5,172.45,4.2909]
[1717598194442,2.1449,172.5,172.46,2.1453]
[1717598195260,1.2727606,172.49,172.45,2.1454]
[1717598195429,3.4178606,172.49,172.45,2.1454]
[1717598195625,0.9327606,172.48,172.45,2.1454]
[1717598197654,0.9327606,172.48,172.46,8.69138389]
[1717598199258,6.7759,172.47,172.46,8.69138389]
[1717598199424,28.7153,172.47,172.43,8.69138389]
[1717598199627,2.1456,172.44,172.43,8.69138389]
[1717598199832,2.1456,172.45,172.43,8.69138389]
[1717598200134,2.1456,172.45,172.41,2.546]
[1717598200135,1.1027606,172.44,172.42,8.69138389]
[1717598200644,1.1027606,172.44,172.41,2.546]
[1717598205669,1.1027606,172.44,172.42,2.1459]
[1717598206279,1.1027606,172.44,172.41,2.5459]
[1717598206459,3.2484606,172.44,172.41,0.4]
[1717598206665,0.17,172.43,172.41,0.4]
[1717598206979,0.17,172.43,172.41,2.546]
[1717598207572,2.1458,172.43,172.41,0.4]
[1717598207768,2.4857,172.44,172.41,0.4]
[1717598207963,0.9327606,172.42,172.41,0.4]
[1717598210780,2.1455,172.45,172.41,2.5459]
[1717598211092,28.6255,172.51,172.41,8.984]
[1717598211274,2.1452,172.48,172.44,2.1456]
[1717598211588,2.1451,172.49,172.44,2.1456]
[1717598211773,2.1451,172.49,172.45,2.1455]
[1717598211976,2.1451,172.48,172.44,2.1456]
[1717598212286,3.0778606,172.48,172.44,2.1456]
[1717598212690,2.1453,172.47,172.43,2.1457]
[1717598213862,3.0779606,172.48,172.44,2.1456]
[1717598214262,2.1453,172.47,172.43,2.1457]
[1717598214672,0.9327606,172.46,172.43,2.1457]
[1717598215072,3.0781606,172.46,172.43,2.1457]
[1717598215384,3.0781606,172.46,172.41,4.692]
[1717598215385,0.9327606,172.45,172.42,2.1458]
[1717598215605,3.2482606,172.45,172.41,2.5459]
[1717598215777,2.1456,172.44,172.41,0.4]
[1717598216089,2.1455,172.45,172.41,2.5459]
[1717598216797,0.9327606,172.44,172.41,2.5459]
[1717598216968,0.34,172.43,172.41,0.4]
[1717598217291,1.2727606,172.43,172.41,0.4]
[1717598217497,3.4185606,172.43,172.41,0.4]
[1717598218689,1.2727606,172.43,172.41,0.4]
[1717598218873,3.4185606,172.43,172.41,0.4]
[1717598219199,0.34,172.43,172.41,0.4]
[1717598219694,6.6819,172.42,172.41,0.4]
[1717598219870,9.9305606,172.42,172.41,0.4]
[1717598220071,14.2223606,172.42,172.41,0.4]
[1717598220281,9.9305606,172.42,172.41,0.4]
[1717598221484,14.2223606,172.42,172.41,0.4]
[1717598221700,82.8193606,172.42,172.41,0.4]
[1717598222021,65.4493606,172.42,172.41,0.4]
[1717598223419,26.6077,172.42,172.41,0.4]
[1717598225000,42.7317606,172.42,172.41,0.4]
[1717598225799,41.799,172.42,172.41,0.4]
[1717598226270,47.865,172.42,172.41,0.4]
[1717598226466,41.799,172.42,172.41,0.4]
[1717598226671,2.4859,172.42,172.41,0.4]
[1717598227074,22.7317606,172.42,172.41,0.4]
[1717598227808,13.2154,172.42,172.41,0.4]
[1717598227973,2.1459,172.42,172.41,0.4]
[1717598228181,2.1458,172.43,172.41,0.4]
[1717598228492,2.1457,172.44,172.41,0.4]
[1717598228700,2.1457,172.44,172.41,2.546]
[1717598228872,2.1457,172.44,172.41,0.4]
[1717598229079,2.1458,172.43,172.41,0.4]
[1717598230210,10.7262,172.48,172.41,0.4]
[1717598230410,2.1455,172.45,172.42,2.1458]
[1717598230988,2.1456,172.44,172.41,2.5459]
[1717598231586,2.1457,172.44,172.41,0.4]
[1717598231890,0.17,172.43,172.41,0.4]
[1717598232074,0.34,172.43,172.41,0.4]
[1717598232382,2.1456,172.45,172.41,0.4]
[1717598232568,2.1454,172.46,172.42,2.1459]
[1717598232775,2.1453,172.47,172.43,2.1457]
[1717598233194,2.1451,172.48,172.44,2.1455]
[1717598233920,2.1453,172.47,172.44,2.1455]
[1717598234214,2.3152,172.48,172.44,2.1455]
[1717598234513,2.1449,172.5,172.46,2.1453]
[1717598234808,2.1448,172.51,172.47,2.1452]
[1717598235810,2.1448,172.51,172.47,8.5219]
[1717598236020,2.145,172.49,172.45,2.1455]
[1717598236317,2.1448,172.51,172.47,2.1452]
[1717598236515,2.1448,172.51,172.44,10.6679]
[1717598236516,2.1449,172.5,172.46,2.1453]
[1717598236823,2.1449,172.5,172.46,8.522]
[1717598237021,20.2329606,172.54,172.47,2.1452]
[1717598237196,2.1448,172.51,172.47,8.5219]
[1717598237703,0.34,172.53,172.48,2.1451]
[1717598237704,2.1446,172.52,172.48,2.1451]
[1717598238615,0.34,172.53,172.52,2.1446]
[1717598238825,0.34,172.53,172.42,8.69972078]
[1717598238826,7.87848564,172.59,172.49,10.7583]
[1717598239112,7.87848564,172.59,172.51,2.1447]
[1717598239113,2.1443,172.55,172.51,2.1447]
[1717598239286,0.17,172.54,172.51,2.1447]
[1717598239708,0.17,172.54,172.49,10.7583]
[1717598239709,2.3144,172.54,172.5,2.1449]
[1717598240608,2.1445,172.53,172.49,8.6135]
[1717598240791,2.1443,172.55,172.51,2.1447]
[1717598241516,10.7255,172.6,172.52,4.2893]
[1717598241695,2.1436,172.6,172.55,2.1441]
[1717598242017,2.1438,172.59,172.54,2.1443]
[1717598242197,2.1438,172.59,172.54,8.7679]
[1717598242817,2.1437,172.6,172.56,6.6236]
[1717598243017,7.7625606,172.64,172.52,4.2893]
[1717598243018,2.1435,172.61,172.53,4.2888]
[1717598243220,2.1437,172.6,172.55,2.1441]
[1717598243405,2.1439,172.58,172.5,6.6236]
[1717598243729,2.144,172.57,172.53,6.3597]
[1717598243900,2.1439,172.58,172.53,8.5041]
[1717598244637,2.1442,172.56,172.53,6.3597]
[1717598244921,2.1442,172.56,172.52,2.1446]
[1717598245499,0.9327606,172.55,172.52,2.1446]
[1717598245700,0.9327606,172.55,172.51,2.1447]
[1717598246207,2.1442,172.56,172.52,2.1446]
[1717598246527,2.4841,172.57,172.53,2.1445]
[1717598247326,2.4841,172.57,172.5,4.2898]
[1717598248016,2.4841,172.57,172.52,2.1446]
[1717598248529,2.1441,172.56,172.52,2.1446]
[1717598249031,2.484,172.57,172.53,2.1445]
[1717598249231,0.17,172.57,172.53,2.1445]
[1717598249531,22.1438,172.59,172.54,2.1443]
[1717598249703,2.1438,172.59,172.54,2.1443]
[1717598250114,2.1437,172.6,172.56,2.1441]
[1717598251333,0.17,172.59,172.56,2.1441]
[1717598251537,2.4838,172.59,172.55,2.1442]
[1717598252029,0.34,172.59,172.56,2.1441]
[1717598252209,2.4838,172.59,172.55,2.1442]
[1717598253823,3.0766606,172.58,172.54,2.1443]
[1717598254030,0.9327606,172.57,172.54,2.1443]
[1717598255513,2.1439,172.58,172.54,2.1443]
[1717598255708,0.34,172.57,172.54,2.1443]
[1717598256118,0.34,172.57,172.49,21.3246]
[1717598256319,2.3142,172.56,172.52,2.1446]
[1717598256523,0.9327606,172.55,172.52,2.1446]
[1717598256734,0.9327606,172.55,172.53,2.1445]
[1717598257323,0.9327606,172.55,172.5,4.2898]
[1717598257324,0.9327606,172.55,172.52,2.1446]
[1717598258318,0.34,172.54,172.52,2.1446]
[1717598258631,0.34,172.54,172.51,2.1447]
[1717598259415,0.34,172.54,172.52,2.1446]
[1717598259621,0.34,172.55,172.52,2.1446]
[1717598259919,3.4170606,172.55,172.51,2.1447]
[1717598260316,3.4170606,172.55,172.45,21.8203]
[1717598260317,2.1445,172.53,172.47,10.7262]
[1717598260538,2.1445,172.53,172.49,2.1449]
[1717598260539,1.2727606,172.52,172.49,2.1449]
[1717598260718,1.2727606,172.52,172.5,2.1448]
[1717598261207,1.2727606,172.52,172.51,2.1448]
[1717598261208,0.34,172.52,172.51,2.1448]
[1717598261813,0.9327606,172.54,172.52,2.1446]
[1717598262050,20.0,172.58,172.45,6.0514]
[1717598262254,20.9327606,172.6,172.52,8.5786]
[1717598262411,2.1439,172.58,172.54,2.1443]
[1717598262612,3.0766606,172.58,172.54,2.1443]
[1717598263117,3.0767606,172.57,172.53,2.1444]
[1717598263318,0.17,172.56,172.53,2.1444]
[1717598263539,0.34,172.56,172.53,2.1444]
[1717598263737,0.9327606,172.55,172.52,2.1446]
[1717598264039,0.34,172.56,172.53,2.1445]
[1717598264412,2.1443,172.55,172.51,2.1447]
[1717598264615,2.4842,172.56,172.52,2.1446]
[1717598264914,2.3142,172.56,172.52,2.1446]
[1717598265113,0.17,172.55,172.53,2.1445]
[1717598265739,2.4841,172.56,172.52,2.1446]
[1717598267330,0.9327606,172.55,172.52,2.1446]
[1717598268251,0.34,172.54,172.51,2.1447]
[1717598268550,1.2727606,172.54,172.51,2.1447]
[1717598268758,1.2727606,172.54,172.48,4.2901]
[1717598268924,2.1445,172.53,172.49,2.1449]
[1717598269255,1.2727606,172.52,172.5,2.1449]
[1717598270229,1.2727606,172.52,172.49,2.1449]
[1717598270641,1.2727606,172.52,172.48,2.1451]
[1717598270642,3.4173606,172.52,172.48,2.1451]
[1717598270843,3.0775606,172.51,172.48,2.1451]
[1717598271130,0.34,172.5,172.48,2.1451]
[1717598272167,0.34,172.5,172.47,2.1452]
[1717598272376,1.2727606,172.5,172.46,4.2908]
[1717598272662,0.34,172.5,172.49,2.145]
[1717598275156,0.34,172.5,172.48,2.1451]
[1717598275363,0.34,172.51,172.49,2.145]
[1717598276455,0.34,172.51,172.48,2.1451]
[1717598277952,0.34,172.51,172.49,2.145]
[1717598278156,2.4846,172.52,172.49,2.145]
[1717598280059,2.4846,172.52,172.48,2.1451]
[1717598280266,2.1441,172.57,172.5,10.7244]
[1717598280475,2.1442,172.56,172.52,2.1445]
[1717598280792,2.1442,172.56,172.52,2.1446]
[1717598281078,22.5853606,172.6,172.45,6.5354]
[1717598281286,2.144,172.57,172.53,2.1444]
[1717598282677,0.34,172.56,172.53,2.1444]
[1717598284064,2.4841,172.56,172.53,2.1444]
[1717598284280,2.4841,172.56,172.52,2.1446]
[1717598284482,0.34,172.56,172.54,2.1444]
[1717598284687,0.34,172.56,172.53,2.1444]
[1717598285475,0.34,172.56,172.54,2.1444]
[1717598286185,2.1437,172.6,172.47,5.795]
[1717598286388,2.1438,172.59,172.56,2.1441]
[1717598286595,2.1437,172.6,172.56,2.1441]
[1717598286890,6.4306,172.58,172.47,5.795]
[1717598287093,0.9327606,172.6,172.51,4.2895]
[1717598287094,2.1441,172.57,172.51,4.2895]
[1717598287305,20.0,172.59,172.51,10.7239]
[1717598287476,2.4839,172.58,172.54,2.1444]
[1717598287675,2.144,172.57,172.54,2.1444]
[1717598287876,2.484,172.58,172.54,2.1443]
[1717598289401,2.484,172.58,172.55,2.1443]
[1717598289880,2.484,172.58,172.54,2.1443]
[1717598291193,0.34,172.58,172.55,2.1442]
[1717598291574,2.4839,172.58,172.55,2.1442]
[1717598291980,0.34,172.58,172.55,2.1442]
[1717598293682,0.34,172.59,172.54,2.1443]
[1717598293884,2.144,172.58,172.54,2.1443]
[1717598294902,0.34,172.59,172.56,2.1441]
[1717598295111,2.4838,172.59,172.55,2.1442]
[1717598297107,2.4838,172.59,172.43,10.46785647]
[1717598297108,0.34,172.59,172.56,2.144]
[1717598297307,2.1437,172.6,172.56,2.144]
[1717598297499,2.1438,172.59,172.55,2.1442]
[1717598297988,3.0766606,172.58,172.55,2.1442]
[1717598298288,0.9327606,172.58,172.55,2.1442]
[1717598298613,2.4838,172.59,172.55,2.1442]
[1717598300198,0.9327606,172.58,172.55,2.1442]
[1717598303120,3.0766606,172.58,172.54,2.1443]
[1717598303307,0.34,172.57,172.54,2.1443]
[1717598304317,0.34,172.57,172.55,2.1442]
[1717598304494,0.34,172.58,172.55,2.1442]
[1717598304698,0.34,172.58,172.53,10.7226]
[1717598304903,0.34,172.58,172.55,2.1442]
[1717598305206,0.34,172.58,172.56,2.1441]
[1717598305795,2.1437,172.6,172.56,2.1441]
[1717598306014,2.4838,172.59,172.56,2.1441]
[1717598306703,2.4838,172.59,172.55,2.1442]
[1717598308398,2.4838,172.59,172.56,2.1441]
[1717598310000,1.2727606,172.59,172.55,2.1442]
[1717598311000,3.4165606,172.59,172.55,2.1442]
[1717598312278,2.4838,172.59,172.55,2.1442]
[1717598312535,0.34,172.59,172.56,2.1441]
[1717598313695,0.34,172.59,172.57,2.144]
[1717598313892,0.34,172.59,172.56,2.144]
[1717598314732,2.4838,172.59,172.56,2.144]
[1717598314904,2.4838,172.59,172.55,2.1442]
[1717598315317,2.4838,172.59,172.55,2.1441]
[1717598315624,2.4838,172.59,172.55,2.1442]
[1717598316051,2.4838,172.59,172.56,2.1441]
[1717598320734,0.17,172.59,172.56,2.1441]
[1717598320914,2.1437,172.6,172.56,2.1441]
[1717598323733,2.1437,172.6,172.56,2.1441]
[1717598324027,22.4836,172.61,172.54,6.4332]
[1717598324246,2.1437,172.6,172.55,4.2885]
[1717598324532,2.1437,172.6,172.57,2.144]
[1717598324707,3.0764606,172.6,172.57,2.144]
[1717598325218,3.0764606,172.6,172.56,2.1441]
[1717598325923,2.1437,172.6,172.57,2.144]
[1717598326611,2.1437,172.6,172.56,2.1441]
[1717598328130,2.1438,172.59,172.56,2.1441]
[1717598328335,2.1437,172.6,172.56,2.1441]
[1717598328829,2.1437,172.6,172.57,2.144]
[1717598329133,22.1435,172.62,172.58,2.1438]
[1717598329321,2.1435,172.62,172.58,2.1438]
[1717598329930,2.1435,172.62,172.59,2.1437]
[1717598330236,2.1435,172.62,172.58,2.1438]
[1717598330421,2.1434,172.62,172.58,2.1438]
[1717598330617,2.1434,172.62,172.59,2.1438]
[1717598330808,0.4,172.64,172.61,2.1435]
[1717598331011,0.4,172.64,172.51,6.1931]
[1717598331012,2.5432,172.64,172.6,2.1436]
[1717598331421,0.4,172.64,172.61,2.1435]
[1717598331820,0.4,172.64,172.59,4.2875]
[1717598332020,0.4,172.64,172.61,6.6415]
[1717598332210,0.4,172.64,172.63,2.1433]
[1717598332432,0.4,172.64,172.53,6.6415]
[1717598332740,0.4,172.64,172.56,4.2883]
[1717598332921,2.5432,172.64,172.59,2.1437]
[1717598333117,2.5432,172.64,172.56,10.7207]
[1717598333428,2.5432,172.64,172.59,2.1437]
[1717598333627,0.4,172.64,172.6,2.1436]
[1717598336845,0.4,172.64,172.53,6.6415]
[1717598337015,0.34,172.63,172.55,4.2885]
[1717598337220,0.4,172.64,172.56,4.2883]
[1717598337644,2.5432,172.64,172.58,2.1438]
[1717598337843,2.4833,172.63,172.58,2.1438]
[1717598338036,0.34,172.63,172.54,4.2887]
[1717598338247,2.1436,172.6,172.55,2.1442]
[1717598339246,8.4891,172.61,172.56,2.1441]
[1717598339623,8.4891,172.61,172.53,2.1445]
[1717598339624,6.9842606,172.6,172.53,2.1445]
[1717598339841,6.9842606,172.6,172.52,2.1446]
[1717598339842,2.144,172.57,172.52,2.1446]
[1717598340050,0.34,172.59,172.53,2.1445]
[1717598340051,2.1439,172.58,172.53,2.1445]
[1717598340652,2.1441,172.56,172.51,2.1447]
[1717598341026,0.9327606,172.56,172.46,5.795]
[1717598341325,0.34,172.55,172.42,259.28259642]
[1717598341633,0.34,172.55,172.52,2.1446]
[1717598341634,0.9327606,172.55,172.52,2.1446]
[1717598341836,0.9327606,172.55,172.49,4.29]
[1717598342046,8.2152,172.58,172.53,2.1444]
[1717598342224,6.0713,172.58,172.5,6.4346]
[1717598342424,0.34,172.59,172.55,2.1442]
[1717598343048,2.1439,172.58,172.53,2.1444]
[1717598343342,0.9327606,172.57,172.53,2.1444]
[1717598343559,8.61,172.59,172.54,2.1443]
[1717598343930,0.34,172.59,172.51,6.4344]
[1717598344134,24.7147,172.63,172.58,2.1438]
[1717598344346,22.5714,172.63,172.48,6.5382]
[1717598344533,6.6355,172.63,172.49,20.34]
[1717598344730,0.4,172.64,172.6,2.1436]
[1717598345153,0.4,172.64,172.59,2.1437]
[1717598345528,3.4759606,172.64,172.58,2.1438]
[1717598345868,3.4759606,172.64,172.59,2.1437]
[1717598346093,0.9327606,172.63,172.59,2.1437]
[1717598346733,0.4,172.64,172.59,2.1437]
[1717598347048,0.4,172.64,172.57,4.2881]
[1717598347250,0.4,172.64,172.61,2.1435]
[1717598347453,0.4,172.64,172.57,4.2881]
[1717598347454,0.4,172.64,172.59,2.1437]
[1717598347654,0.4,172.64,172.6,2.1436]
[1717598347838,2.5432,172.64,172.5,5.795]
[1717598348029,0.4,172.64,172.51,20.34]
[1717598348231,0.4,172.64,172.52,20.34]
[1717598348432,0.4,172.64,172.49,20.34]
[1717598348854,0.4,172.64,172.6,2.1435]
[1717598349059,0.4,172.64,172.61,2.1435]
[1717598349963,0.4,172.64,172.6,2.1435]
[1717598350341,0.4,172.64,172.61,2.1435]
[1717598350748,0.4,172.64,172.62,2.1434]
[1717598351967,0.4,172.64,172.61,2.1435]
[1717598353166,0.4,172.64,172.63,6.4299]
[1717598353369,0.4,172.64,172.63,2.1433]
[1717598357492,0.4,172.64,172.63,6.4299]
[1717598358456,0.4,172.64,172.63,2.1433]
[1717598358883,0.4,172.64,172.56,6.5643]
[1717598359169,0.4,172.64,172.63,2.1433]
[1717598359964,0.4,172.64,172.58,6.4314]
[1717598360149,0.4,172.64,172.6,2.1436]
[1717598360372,0.4,172.64,172.61,2.1435]
[1717598360580,1.3327606,172.64,172.61,2.1435]
[1717598360875,0.4,172.64,172.63,12.8598]
[1717598361095,0.4,172.64,172.63,6.4299]
[1717598363259,0.4,172.64,172.63,2.1433]
[1717598365484,0.4,172.64,172.63,6.4299]
[1717598367574,0.4,172.64,172.63,12.8598]
[1717598367764,0.4,172.64,172.63,21.433]
[1717598368777,0.4,172.64,172.63,27.597]
[1717598370379,0.4,172.64,172.63,47.597]
[1717598370989,0.4,172.74,172.63,26.164]
[1717598371200,0.4,172.74,172.64,20.34]
[1717598371490,0.4,172.74,172.73,2.142]
[1717598374268,0.4,172.74,172.72,2.1421]
[1717598374466,6.7835,172.74,172.68,12.8555]
[1717598374687,6.3835,172.73,172.65,6.4289]
[1717598374875,6.3835,172.73,172.7,2.1424]
[1717598375067,6.3835,172.73,172.67,4.2856]
[1717598375068,6.3835,172.73,172.68,4.2853]
[1717598375482,6.3835,172.73,172.71,2.1422]
[1717598375699,6.3835,172.73,172.68,10.7132]
[1717598375700,2.1422,172.72,172.65,4.2859]
[1717598375995,6.4228,172.72,172.68,2.1425]
[1717598376187,22.7805,172.72,172.68,2.1425]
[1717598377291,22.7805,172.72,172.65,15.0013]
[1717598377700,22.7805,172.72,172.68,2.1426]
[1717598380697,6.5377,172.73,172.6,0.34]
[1717598380874,0.9327606,172.73,172.64,4.2862]
[1717598381071,0.9327606,172.73,172.68,2.1426]
[1717598381307,24.3722,172.72,172.67,2.1427]
[1717598381969,22.23,172.72,172.68,2.1426]
[1717598382485,6.386,172.71,172.68,2.1426]
[1717598383617,0.9327606,172.7,172.64,4.2862]
[1717598383778,0.9327606,172.7,172.66,2.1428]
[1717598384211,7.1107606,172.7,172.66,2.1428]
[1717598384383,6.646,172.69,172.66,2.1428]
[1717598384584,6.646,172.69,172.67,2.1428]
[1717598385002,6.646,172.69,172.64,4.2862]
[1717598385302,16.4897,172.7,172.67,2.1427]
[1717598386083,6.6772,172.71,172.67,2.1427]
[1717598386405,6.3372,172.7,172.67,2.1427]
[1717598388705,6.3372,172.7,172.67,2.1428]
[1717598389209,7.2699606,172.7,172.66,2.1428]
[1717598389390,8.4796,172.7,172.66,2.1428]
[1717598389581,7.2699606,172.7,172.66,2.1428]
[1717598389787,6.3372,172.7,172.66,2.1428]
[1717598390724,9.4123606,172.7,172.66,2.1428]
[1717598391032,8.4796,172.7,172.66,2.1428]
[1717598391376,6.3372,172.7,172.66,2.1428]
[1717598391598,6.3372,172.7,172.67,2.1427]
[1717598391993,6.3372,172.7,172.64,10.7157]
[1717598392199,0.34,172.71,172.67,2.1427]
[1717598393083,0.34,172.71,172.68,2.1426]
[1717598393512,0.34,172.71,172.67,2.1427]
[1717598394192,2.4823,172.71,172.67,2.1427]